bitfinex/quotes_ETHUSD_20260310
["timestamp","ask_amount","ask_price","bid_price","bid_amount"]
[1773150364303,1.41057563,2032.9,2031.4,1.23067834]
[1773150364514,1.41057563,2032.9,2031.5,1.4075581]
[1773150364704,1.41409589,2033.3,2031.5,1.4075581]
[1773150364880,1.41409589,2033.3,2032.0,1.4075581]
[1773150365078,1.41409589,2033.3,2032.1,2.63781251]
[1773150365280,1.41409589,2033.2,2032.1,1.23025441]
[1773150365703,0.001,2032.7,2032.3,2.62659266]
[1773150365914,1.41409589,2033.7,2032.3,2.62659266]
[1773150366124,1.41409589,2033.7,2032.4,1.4075581]
[1773150366890,2.70522607,2033.8,2032.1,1.23025441]
[1773150366891,1.41409589,2033.4,2032.1,1.23025441]
[1773150367087,1.22952835,2033.3,2032.1,1.23025441]
[1773150367286,1.41409589,2033.2,2032.1,1.23025441]
[1773150367503,1.41409589,2033.2,2031.7,6.3295384]
[1773150367700,1.41409589,2033.2,2031.8,1.45677554]
[1773150368006,1.477,2033.1,2031.8,1.45677554]
[1773150368212,1.41409589,2033.1,2031.8,1.45677554]
[1773150368387,1.41409589,2033.1,2031.8,1.4075581]
[1773150368575,1.41409589,2033.1,2031.8,1.45677554]
[1773150368781,1.41409589,2033.1,2031.8,1.4075581]
[1773150368987,1.41409589,2033.1,2031.9,0.04921502]
[1773150369309,1.22970978,2033.0,2032.0,1.23031496]
[1773150369507,1.41409589,2032.9,2031.9,0.04921502]
[1773150369698,4.918366,2033.2,2031.9,1.45677312]
[1773150369896,1.41409589,2033.0,2031.8,1.23039374]
[1773150370296,1.41409589,2033.0,2031.8,2.63795184]
[1773150370495,1.477,2033.1,2031.9,1.4075581]
[1773150370810,2.89109589,2033.1,2031.9,1.4075581]
[1773150371009,1.41409589,2032.5,2031.1,1.4075581]
[1773150371306,1.41409589,2032.3,2031.1,1.4075581]
[1773150371512,1.23007282,2032.4,2031.2,1.4075581]
[1773150371883,4.91983973,2032.6,2031.2,1.4075581]
[1773150372083,1.22995178,2032.6,2031.2,1.4075581]
[1773150372383,2.89109589,2032.5,2031.2,1.4075581]
[1773150372880,1.22995178,2032.6,2031.2,1.4075581]
[1773150373085,4.91975353,2032.7,2031.4,1.23067834]
[1773150373086,1.22989127,2032.7,2031.4,1.23067834]
[1773150373690,2.70689127,2032.7,2031.5,1.4075581]
[1773150373890,2.64370246,2033.2,2031.6,1.4075581]
[1773150374206,2.64370246,2033.2,2031.5,2.42278956]
[1773150374207,4.12069035,2033.2,2031.9,1.4075581]
[1773150374510,4.91772352,2033.5,2032.0,1.45677069]
[1773150374710,2.70640742,2033.5,2032.2,1.4075581]
[1773150374912,2.64346027,2033.6,2032.2,1.45676585]
[1773150375114,3.80952869,2033.9,2032.5,1.4075581]
[1773150375280,1.41409589,2033.8,2032.6,1.22995178]
[1773150375819,2.89109589,2033.7,2032.6,1.22995178]
[1773150376310,1.41409589,2033.7,2032.6,1.22995178]
[1773150376513,1.477,2033.6,2032.6,1.22995178]
[1773150376717,4.91618261,2034.1,2032.6,1.22995178]
[1773150376718,2.70696651,2034.3,2032.7,1.4075581]
[1773150377013,2.70696651,2034.3,2033.0,1.4075581]
[1773150377014,0.001,2034.3,2033.0,1.4075581]
[1773150377212,0.001,2034.3,2033.6,2.42278956]
[1773150377414,1.22844086,2035.1,2033.7,1.4075581]
[1773150377613,1.41409589,2035.3,2033.7,1.4075581]
[1773150377911,2.29290979,2035.8,2033.4,1.22946788]
[1773150377912,4.11911435,2035.8,2034.0,1.4075581]
[1773150378120,2.42278956,2035.7,2034.0,1.4075581]
[1773150378279,5.06490391,2035.8,2034.0,1.4075581]
[1773150378485,1.22801846,2035.8,2034.3,1.4075581]
[1773150378715,4.91207079,2035.9,2034.2,2.42278956]
[1773150378716,1.22791193,2036.0,2034.6,1.4075581]
[1773150379016,1.22787592,2036.1,2034.6,1.4075581]
[1773150379181,2.42378956,2036.4,2035.1,1.4075581]
[1773150379182,0.001,2036.4,2035.1,1.4075581]
[1773150379595,3.83688545,2036.1,2034.7,1.4075581]
[1773150379826,2.50849779,2035.9,2034.6,1.4075581]
[1773150380029,1.41509589,2036.4,2034.6,1.4075581]
[1773150380322,0.001,2036.4,2034.9,1.4075581]
[1773150380935,0.001,2036.4,2035.2,1.4075581]
[1773150381310,0.001,2036.4,2035.3,1.22832014]
[1773150381514,1.41409589,2036.3,2034.8,1.22862197]
[1773150381824,3.83688545,2036.1,2034.7,2.63619532]
[1773150382010,2.89009589,2036.0,2034.7,1.22863722]
[1773150382210,1.41409589,2036.3,2034.8,1.4075581]
[1773150382417,2.89009589,2036.3,2034.8,1.4075581]
[1773150382621,1.41409589,2036.2,2034.8,1.4075581]
[1773150382834,3.83688545,2035.6,2034.2,1.4075581]
[1773150383236,1.22819945,2035.5,2034.3,1.22892395]
[1773150383728,1.22819945,2035.5,2034.2,1.2289638]
[1773150383729,2.64229534,2035.5,2034.2,1.2289638]
[1773150384293,2.88909589,2035.4,2034.2,1.2289638]
[1773150384521,1.22819945,2035.5,2034.2,2.6365219]
[1773150386505,1.22817042,2035.6,2034.3,1.4075581]
[1773150386709,4.91110892,2036.3,2034.6,1.4075581]
[1773150387197,4.91110892,2036.3,2034.7,1.22868236]
[1773150387398,4.91110892,2036.3,2034.8,1.4075581]
[1773150387629,6.38610892,2036.3,2034.8,1.4075581]
[1773150387795,0.001,2036.4,2034.8,3.82188964]
[1773150388133,1.22867355,2036.4,2035.2,1.4075581]
[1773150388431,1.22865945,2036.4,2035.2,1.4075581]
[1773150388751,0.001,2036.4,2035.2,1.4075581]
[1773150389103,1.22866145,2036.4,2035.2,1.4075581]
[1773150389420,0.001,2036.4,2035.4,1.4075581]
[1773150390917,0.001,2036.8,2036.2,1.4075581]
[1773150391107,4.90772888,2037.7,2036.2,1.4075581]
[1773150391307,6.32182477,2037.7,2036.3,1.22771693]
[1773150392305,3.82842743,2037.2,2035.9,1.22793382]
[1773150392523,3.82842743,2037.2,2035.8,1.22797107]
[1773150392524,1.41409589,2037.0,2035.8,1.22797107]
[1773150392722,0.001,2036.2,2035.8,1.22797107]
[1773150393427,0.001,2036.2,2035.6,1.4075581]
[1773150394012,0.001,2036.2,2035.9,1.37988999]
[1773150394222,1.22715339,2037.3,2035.9,1.37988999]
[1773150395334,1.39639578,2037.2,2035.6,1.242]
[1773150395514,3.64156633,2037.1,2035.8,1.22801846]
[1773150395714,1.22723479,2037.1,2035.8,1.22801846]
[1773150395938,1.22699386,2037.5,2035.9,1.37988999]
[1773150396143,1.22675303,2037.9,2036.5,1.37988999]
[1773150396318,1.22673975,2038.0,2036.8,1.37988999]
[1773150396838,8.81166491,2038.4,2036.8,1.37988999]
[1773150396839,1.22651228,2038.3,2036.8,1.37988999]
[1773150397042,2.62290806,2038.3,2036.8,1.37988999]
[1773150397336,2.62290806,2038.3,2036.6,1.37988999]
[1773150397337,2.41433154,2038.2,2036.6,1.37988999]
[1773150397508,2.62308861,2038.0,2036.6,2.6073822]
[1773150397939,2.62308861,2038.0,2036.6,1.37988999]
[1773150398175,1.39639578,2037.6,2036.1,2.60768581]
[1773150398323,1.39639578,2037.5,2036.1,1.22782775]
[1773150399638,6.30247724,2038.3,2036.7,2.41433154]
[1773150399808,1.22651228,2038.3,2036.9,1.37988999]
[1773150400004,4.90524961,2038.7,2037.1,1.37988999]
[1773150400241,4.90524961,2038.7,2037.4,1.37988999]
[1773150400439,4.90524961,2038.7,2037.0,2.41433154]
[1773150400440,6.30164539,2038.7,2037.0,3.79422153]
[1773150400638,6.30164539,2038.7,2037.1,1.37988999]
[1773150401441,6.30164539,2038.7,2037.2,1.22717455]
[1773150401442,2.62278773,2038.5,2037.2,1.22717455]
[1773150402034,1.22639195,2038.5,2037.3,1.37988999]
[1773150403455,1.39639578,2038.5,2037.0,4.90917709]
[1773150403757,1.39639578,2038.5,2037.1,1.22723479]
[1773150404130,1.46193178,2038.3,2037.1,1.22723479]
[1773150404324,1.46193178,2038.3,2036.5,2.60748635]
[1773150404657,1.46193178,2038.3,2036.6,1.42899143]
[1773150404856,1.46193178,2038.3,2036.7,1.37988999]
[1773150405058,1.39639578,2038.3,2036.8,1.29009662]
[1773150405368,1.39639578,2038.3,2036.7,1.37988999]
[1773150405527,1.22657246,2038.2,2036.9,1.22735529]
[1773150405860,1.39639578,2038.1,2036.4,1.37988999]
[1773150406357,1.39639578,2038.1,2036.5,0.04910385]
[1773150406556,2.41433154,2037.9,2036.4,1.37988999]
[1773150406768,1.43775246,2037.7,2036.4,1.37988999]
[1773150406979,1.43775246,2037.6,2036.3,1.22771693]
[1773150407671,2.66474632,2037.5,2036.4,0.04910626]
[1773150407836,1.43775246,2037.4,2036.2,0.04911108]
[1773150408425,1.43775246,2037.4,2036.1,4.91196775]
[1773150408660,1.43775246,2037.4,2036.2,0.04911108]
[1773150408862,1.22699386,2037.5,2036.2,1.48033707]
[1773150409030,1.22699386,2037.5,2036.2,1.43122599]
[1773150409231,2.66474632,2037.5,2036.2,1.43122599]
[1773150409434,1.43775246,2037.4,2036.2,1.22775655]
[1773150409632,1.43775246,2037.4,2036.3,0.04910867]
[1773150410237,4.90765889,2037.7,2036.4,2.41433154]
[1773150410534,4.90765889,2037.7,2036.5,1.48032984]
[1773150410772,1.22687343,2037.7,2036.5,1.43122599]
[1773150410947,1.2268615,2037.8,2036.7,1.43122599]
[1773150411265,1.22657273,2038.2,2036.8,1.43122599]
[1773150411431,3.853084,2038.3,2037.0,1.22729504]
[1773150411628,1.43775246,2038.2,2037.0,1.22729504]
[1773150411831,1.43775246,2038.2,2036.9,1.22733619]
[1773150412137,1.43775246,2038.2,2036.8,2.6586167]
[1773150412530,1.43775246,2037.9,2036.5,1.237]
[1773150412761,1.43775246,2037.9,2036.5,2.66822599]
[1773150412937,1.43775246,2037.8,2036.5,1.43122599]
[1773150413265,1.43775246,2037.8,2036.6,0.04910144]
[1773150413444,1.22699386,2037.5,2036.2,6.14806109]
[1773150413642,1.22699386,2037.5,2036.3,0.04910867]
[1773150413943,1.22699386,2037.5,2036.2,4.91106109]
[1773150414135,2.66474632,2037.5,2036.2,4.91106109]
[1773150415362,2.87031014,2037.4,2036.2,4.91106109]
[1773150415547,1.22711431,2037.3,2036.2,4.91106109]
[1773150415864,1.22701608,2037.5,2036.3,1.43122599]
[1773150416048,1.22701608,2037.5,2036.4,1.28510626]
[1773150416450,1.22701608,2037.5,2036.4,1.236]
[1773150416766,1.22698798,2037.6,2036.5,1.236]
[1773150416931,1.22698798,2037.6,2036.5,2.66722599]
[1773150417448,2.66444529,2038.1,2036.8,1.43122599]
[1773150417762,1.22669283,2038.0,2036.9,1.44205366]
[1773150417968,1.22669283,2038.0,2036.9,1.43122599]
[1773150418151,1.22669283,2038.0,2037.0,1.235]
[1773150418460,4.90643751,2038.2,2037.1,1.43122599]
[1773150418629,2.88056578,2038.1,2037.1,1.43122599]
[1773150418829,1.22657246,2038.2,2037.1,2.66622599]
[1773150419245,1.22753893,2038.3,2037.2,1.43122599]
[1773150419450,1.22753893,2038.3,2037.1,1.235]
[1773150419661,1.22753893,2038.3,2037.2,1.22717455]
[1773150420039,1.22753893,2038.3,2037.2,2.65840054]
[1773150420438,1.22753893,2038.3,2037.3,1.43122599]
[1773150420702,0.001,2038.3,2037.3,1.43122599]
[1773150420969,0.001,2038.9,2037.5,1.43122599]
[1773150420970,1.22719136,2038.9,2037.5,1.43122599]
[1773150421143,1.22718067,2038.9,2037.5,1.43122599]
[1773150421466,0.001,2038.9,2037.8,1.43122599]
[1773150421665,0.001,2038.9,2038.1,1.43122599]
[1773150421869,0.001,2038.9,2038.0,1.22669283]
[1773150422043,0.001,2038.9,2038.0,2.46069283]
[1773150422247,0.001,2038.9,2037.8,1.22680464]
[1773150422448,0.001,2038.9,2037.7,2.65807385]
[1773150422641,3.852084,2038.6,2037.3,3.89233943]
[1773150422963,1.43775246,2038.6,2037.3,2.46111344]
[1773150423468,1.43775246,2038.6,2037.3,3.89233943]
[1773150423670,1.22639195,2038.5,2037.3,3.89233943]
[1773150424160,1.22621149,2038.8,2037.6,1.34897895]
[1773150424772,1.22621149,2038.8,2037.4,0.04908216]
[1773150424773,2.87943811,2038.7,2037.4,0.04908216]
[1773150425073,1.22621149,2038.8,2037.4,1.39806111]
[1773150425277,2.87946844,2038.7,2037.4,1.39806111]
[1773150425578,1.22621149,2038.8,2037.4,2.58197895]
[1773150425579,2.53298176,2038.8,2037.4,2.58197895]
[1773150425775,4.18665212,2038.7,2037.4,2.57598707]
[1773150426072,1.30677027,2038.6,2037.4,1.22700812]
[1773150426442,1.30677027,2038.6,2037.3,1.34897895]
[1773150426771,1.30677027,2038.4,2036.8,1.232]
[1773150426943,4.18615501,2038.3,2036.9,0.04909421]
[1773150427143,1.30677027,2038.3,2036.9,1.34897895]
[1773150427562,1.30677027,2038.3,2036.9,2.58097895]
[1773150427763,1.22657246,2038.2,2037.1,1.22723479]
[1773150428356,1.22657246,2038.2,2037.0,2.57624398]
[1773150428674,4.18575441,2038.1,2036.7,1.22747581]
[1773150428851,1.30677027,2038.1,2036.7,1.22747581]
[1773150429246,4.90604915,2038.4,2036.8,1.34897895]
[1773150429453,4.90604915,2038.4,2037.0,1.34897895]
[1773150429766,4.90604915,2038.4,2036.9,2.46342575]
[1773150429767,4.90604915,2038.4,2037.3,1.22711431]
[1773150429950,4.90508657,2038.8,2037.4,1.39806111]
[1773150430149,2.88108607,2038.7,2037.4,1.39806111]
[1773150431152,2.88108607,2038.7,2037.4,1.34897895]
[1773150431372,2.88108607,2038.7,2037.5,0.04907975]
[1773150431658,4.90508657,2038.8,2037.6,1.34897895]
[1773150431857,4.90508657,2038.8,2037.8,1.22681322]
[1773150432485,6.21185684,2038.8,2037.8,1.22681322]
[1773150432887,2.87851981,2038.7,2037.6,1.34897895]
[1773150433090,2.87851981,2038.7,2037.7,0.04907493]
[1773150433290,2.87851981,2038.7,2037.6,0.04907734]
[1773150433658,6.21185684,2038.8,2037.6,0.04907734]
[1773150433863,6.21185684,2038.8,2037.7,1.22687343]
[1773150434060,6.21185684,2038.8,2037.8,0.04907252]
[1773150434263,1.30677027,2038.5,2037.1,2.57997895]
[1773150434463,1.30677027,2038.5,2037.2,0.04908698]
[1773150434775,1.30677027,2038.5,2037.2,1.39806593]
[1773150435203,1.30677027,2038.5,2037.8,0.0011]
[1773150435727,1.30777027,2038.6,2037.8,0.0011]
[1773150435894,2.53316222,2038.5,2037.8,0.0011]
[1773150436488,1.30677027,2038.3,2037.5,0.0011]
[1773150436698,1.22639195,2038.5,2037.5,0.0011]
[1773150437371,1.22639195,2038.5,2037.5,1.35007895]
[1773150437968,4.90656781,2038.6,2037.7,1.34897895]
[1773150437969,0.001,2038.6,2037.7,1.34897895]
[1773150438209,0.001,2038.6,2037.6,3.64126518]
[1773150438210,0.001,2038.6,2037.9,1.34897895]
[1773150438497,1.30777027,2038.6,2037.6,1.22693364]
[1773150438799,1.30777027,2038.6,2037.5,1.22808005]
[1773150439094,1.30777027,2038.6,2037.6,0.04907734]
[1773150439265,1.30777027,2038.6,2037.5,1.22808005]
[1773150439483,1.30777027,2038.6,2037.5,0.0011]
[1773150439687,1.30777027,2038.6,2037.5,1.22806452]
[1773150440099,1.22639195,2038.5,2037.5,0.0011]
[1773150440305,1.30677027,2038.3,2037.5,0.0011]
[1773150440711,1.22639195,2038.5,2037.5,0.0011]
[1773150441117,1.22737137,2038.6,2037.5,1.38437122]
[1773150441615,0.001,2038.6,2037.7,1.34897895]
[1773150441790,0.001,2038.6,2037.8,1.38326617]
[1773150441998,0.001,2038.6,2037.9,1.22675303]
[1773150442608,0.001,2038.6,2037.9,2.57573198]
[1773150442914,0.001,2038.6,2037.9,1.22675303]
[1773150444091,0.001,2038.6,2037.8,6.25599107]
[1773150444407,0.001,2038.6,2037.9,1.34897895]
[1773150444991,0.001,2038.6,2037.8,4.90701212]
[1773150445186,0.001,2038.6,2037.9,0.04907012]
[1773150445385,0.001,2038.6,2037.9,1.39804907]
[1773150445609,0.001,2038.6,2037.9,2.62504907]
[1773150446021,0.001,2038.6,2037.9,0.04907012]
[1773150446235,0.001,2038.6,2037.7,1.34897895]
[1773150446517,0.001,2038.6,2037.6,3.68321332]
[1773150446518,0.001,2038.6,2038.0,1.34897895]
[1773150447093,0.001,2038.6,2037.7,1.227]
[1773150447405,0.001,2038.6,2037.5,6.25781353]
[1773150447406,1.30777027,2038.6,2037.5,1.2280485]
[1773150447808,1.30777027,2038.6,2037.5,0.0011]
[1773150447809,1.30677027,2038.4,2037.5,0.0011]
[1773150448025,1.30677027,2038.1,2037.5,0.0011]
[1773150448199,2.53332947,2038.3,2037.5,0.0011]
[1773150448520,2.88841016,2038.2,2037.5,0.0011]
[1773150448725,1.2265592,2038.3,2037.5,0.0011]
[1773150449092,1.2265592,2038.3,2037.7,0.0011]
[1773150449291,1.22737547,2038.6,2037.7,0.0011]
[1773150449526,0.001,2038.4,2037.7,0.0011]
[1773150450695,0.001,2038.4,2037.7,1.35007895]
[1773150451094,0.001,2038.4,2037.7,2.57607895]
[1773150451497,0.001,2038.4,2037.7,1.35007895]
[1773150451811,0.001,2038.4,2037.7,0.0011]
[1773150453522,0.001,2038.4,2037.7,1.35007895]
[1773150453719,0.001,2038.4,2037.8,1.38881918]
[1773150453907,0.001,2038.6,2037.9,3.74800449]
[1773150454106,0.001,2038.6,2038.0,1.22669283]
[1773150455248,0.001,2038.6,2037.8,3.7925153]
[1773150455401,0.001,2038.9,2037.8,2.5665153]
[1773150455402,2.74197413,2038.9,2037.8,2.5665153]
[1773150455725,1.36147218,2038.8,2037.8,1.22676864]
[1773150456306,2.5876856,2038.8,2037.8,1.22676864]
[1773150456708,1.22621342,2038.8,2037.8,2.5665153]
[1773150457029,1.22609122,2039.0,2037.9,1.33974666]
[1773150457825,4.90536488,2039.1,2037.9,1.33974666]
[1773150457826,1.22705752,2039.1,2038.1,2.40825783]
[1773150458129,2.5885297,2039.1,2038.2,1.22657246]
[1773150458736,0.001,2039.1,2038.2,1.22657246]
[1773150458909,1.22703351,2039.1,2038.2,2.56631912]
[1773150459305,0.001,2039.1,2038.2,2.56631912]
[1773150459704,0.001,2039.1,2038.5,1.33974666]
[1773150459904,0.1642847,2039.4,2038.7,2.40825783]
[1773150460212,0.001,2039.6,2038.9,2.56589801]
[1773150460535,0.001,2039.6,2038.9,3.79189801]
[1773150460837,0.001,2039.6,2039.0,1.226]
[1773150461143,6.3737205,2040.4,2039.1,1.33974666]
[1773150461144,2.309224,2040.4,2039.1,1.33974666]
[1773150461305,5.54661789,2040.7,2039.6,1.33974666]
[1773150461306,4.90044352,2040.7,2039.6,1.33974666]
[1773150461505,1.36147218,2040.6,2039.5,1.226]
[1773150461813,1.36147218,2040.6,2039.4,1.227]
[1773150462000,1.36147218,2040.4,2039.1,1.227]
[1773150462350,1.36147218,2040.4,2038.8,12.16219574]
[1773150462351,1.36147218,2040.2,2038.8,4.97417309]
[1773150462500,1.36147218,2040.1,2038.8,1.22620315]
[1773150462705,1.36147218,2040.1,2038.7,6.13192318]
[1773150462706,1.36147218,2040.1,2038.7,1.227]
[1773150463309,1.36147218,2039.5,2038.2,1.33974666]
[1773150463646,3.76973001,2039.3,2038.1,1.22660541]
[1773150463803,3.76973001,2039.3,2038.2,0.0011]
[1773150463804,1.36147218,2039.2,2038.2,0.0011]
[1773150464138,2.58750327,2039.1,2038.2,0.0011]
[1773150464801,1.36147218,2039.0,2038.2,0.0011]
[1773150465004,2.40825783,2038.5,2037.5,0.0011]
[1773150465217,1.36147218,2038.0,2036.8,1.22737399]
[1773150465504,1.36147218,2037.7,2036.4,0.0011]
[1773150465710,2.40825783,2037.1,2036.4,0.0011]
[1773150465905,3.76973001,2037.0,2036.1,0.0011]
[1773150466130,1.22735529,2036.9,2036.1,0.0011]
[1773150466631,1.22711431,2037.3,2036.1,0.0011]
[1773150467133,2.53877064,2037.3,2036.1,0.0011]
[1773150467707,1.31165633,2037.0,2036.1,0.0011]
[1773150468029,1.22711431,2037.3,2036.1,0.0011]
[1773150468238,2.53877064,2037.3,2036.1,0.0011]
[1773150468409,1.31165633,2037.2,2036.1,0.0011]
[1773150468604,3.63930428,2037.3,2036.1,0.0011]
[1773150468605,1.31165633,2036.9,2036.1,0.0011]
[1773150468809,1.31165633,2036.9,2035.9,0.0011]
[1773150469010,1.31165633,2036.6,2035.1,4.91370788]
[1773150469320,1.31165633,2036.5,2034.9,1.2285616]
[1773150469514,1.31165633,2036.3,2034.9,1.2285616]
[1773150469868,1.447,2036.6,2034.5,0.0011]
[1773150469869,2.41218997,2035.2,2034.5,0.0011]
[1773150470152,2.75965633,2035.4,2034.1,1.22900832]
[1773150470311,1.22752014,2035.3,2034.0,6.21664382]
[1773150470510,1.22752014,2035.3,2034.1,1.29936468]
[1773150471337,1.31165633,2035.2,2034.0,0.0011]
[1773150471636,4.9130392,2035.5,2034.0,3.71265465]
[1773150471938,1.228142,2035.6,2034.3,3.71155465]
[1773150472312,4.91255649,2035.8,2034.4,1.22886354]
[1773150472515,2.53961448,2035.9,2034.4,1.22886354]
[1773150473273,2.53961448,2035.9,2034.4,2.52822822]
[1773150473413,2.67688178,2036.1,2034.7,1.29936468]
[1773150474141,2.67688178,2036.1,2034.7,2.53136468]
[1773150474341,2.67688178,2036.1,2034.8,1.22862197]
[1773150474641,1.31165633,2036.0,2034.8,1.22862197]
[1773150474838,1.31165633,2036.0,2034.9,0.0123083]
[1773150475040,1.31165633,2036.0,2034.8,1.22862197]
[1773150475639,2.67688178,2036.1,2034.8,1.22862197]
[1773150476042,1.22780252,2036.2,2034.8,2.52798665]
[1773150476937,1.22880252,2036.2,2034.8,2.52798665]
[1773150477159,1.27867745,2036.2,2034.8,2.52798665]
[1773150477328,1.27867745,2036.2,2034.9,1.29936468]
[1773150477532,0.05087493,2036.2,2034.9,1.29936468]
[1773150477928,1.36253126,2036.2,2034.8,1.22862197]
[1773150478454,1.31165633,2035.9,2034.6,4.91473731]
[1773150478954,0.04987493,2035.8,2034.6,4.91473731]
[1773150479752,1.31165633,2035.9,2034.6,4.91473731]
[1773150479956,0.04987493,2035.8,2034.6,4.91473731]
[1773150480329,1.27792959,2035.8,2034.6,4.91473731]
[1773150480654,0.04987493,2035.8,2034.6,4.91473731]
[1773150480833,0.04987493,2035.9,2034.9,1.29936468]
[1773150481034,0.04987493,2036.1,2034.9,1.29936468]
[1773150481247,0.001,2036.2,2035.4,2.41218997]
[1773150481448,0.001,2036.2,2035.4,1.29936468]
[1773150481650,0.001,2036.2,2035.3,1.34849748]
[1773150481960,0.001,2036.2,2035.3,1.29936468]
[1773150482263,0.04987493,2037.0,2035.8,1.29936468]
[1773150482445,1.22721395,2037.2,2035.9,2.52732283]
[1773150482657,0.04987493,2037.1,2035.9,2.52732283]
[1773150483153,0.04987493,2037.1,2036.1,1.29936468]
[1773150483357,0.04987493,2037.5,2036.3,2.41218997]
[1773150483545,0.04987493,2037.8,2036.5,1.29936468]
[1773150484455,1.22687343,2037.7,2036.6,1.22753608]
[1773150484649,0.04987493,2037.6,2036.6,1.22753608]
[1773150484854,3.94303792,2037.9,2036.6,1.22753608]
[1773150485066,0.04987493,2037.8,2036.6,1.22753608]
[1773150485766,1.39259893,2037.8,2036.6,1.22753608]
[1773150486060,1.342724,2037.7,2036.4,1.22765664]
[1773150486228,2.5693649,2038.1,2036.7,1.2604691]
[1773150486424,1.22675303,2037.9,2036.8,1.22741555]
[1773150486656,0.04987493,2037.8,2036.8,1.22741555]
[1773150487077,0.04987493,2037.9,2036.8,1.22741555]
[1773150487668,1.342724,2037.8,2036.4,6.14540212]
[1773150487981,1.342724,2037.6,2036.2,1.22777723]
[1773150488180,0.04987493,2037.5,2036.2,2.48824633]
[1773150488660,1.22705408,2037.4,2036.4,0.0011]
[1773150488839,0.04987493,2037.3,2036.4,0.0011]
[1773150489970,1.39259893,2037.3,2036.4,0.0011]
[1773150490265,0.04987493,2037.3,2036.4,0.0011]
[1773150490485,0.05087493,2037.4,2036.4,0.0011]
[1773150490641,2.61971324,2037.3,2036.4,0.0011]
[1773150491485,3.75491397,2037.2,2036.4,0.0011]
[1773150491785,1.39259893,2037.1,2036.2,0.0011]
[1773150492077,1.40826,2036.9,2036.2,0.0011]
[1773150492286,0.04987493,2036.8,2036.2,0.0011]
[1773150492656,1.22747581,2036.7,2036.2,0.0011]
[1773150492990,0.04987493,2036.6,2036.2,0.0011]
[1773150493885,1.22747581,2036.7,2036.2,0.0011]
[1773150493886,0.04987493,2036.7,2036.2,0.0011]
[1773150494050,0.04987493,2036.9,2036.2,0.0011]
[1773150494254,0.04987493,2037.0,2036.2,0.0011]
[1773150494479,0.04987493,2037.3,2036.2,1.2615691]
[1773150494661,0.04987493,2037.3,2036.3,1.22771693]
[1773150494662,1.22717455,2037.2,2036.3,1.22771693]
[1773150494982,0.04987493,2037.1,2036.3,1.22771693]
[1773150495196,0.04987493,2037.2,2036.3,2.48818603]
[1773150495353,1.27699981,2037.3,2036.4,0.02049732]
[1773150495561,1.27699981,2037.3,2036.3,2.48818603]
[1773150496065,1.27699981,2037.3,2036.4,1.2604691]
[1773150496582,1.27700892,2037.3,2036.4,1.2604691]
[1773150496889,1.342724,2038.2,2036.8,1.2604691]
[1773150497085,4.95651473,2038.1,2036.8,1.2604691]
[1773150497258,1.22661029,2038.2,2037.1,1.2604691]
[1773150497459,0.04987493,2038.1,2037.1,1.2604691]
[1773150497660,0.04987493,2038.5,2037.1,1.2604691]
[1773150498488,2.4620649,2038.5,2037.1,1.2604691]
[1773150498793,2.56923628,2038.3,2037.0,1.22729504]
[1773150499103,1.39259893,2038.2,2037.0,1.22729504]
[1773150499268,1.342724,2038.1,2036.8,4.90950391]
[1773150499464,0.04987493,2038.0,2036.8,4.90950391]
[1773150500057,1.22651228,2038.3,2036.9,1.30956331]
[1773150500283,0.04987493,2038.2,2037.1,1.2604691]
[1773150500487,1.22631768,2038.7,2037.4,1.2604691]
[1773150500689,8.66000054,2038.8,2037.2,1.22717455]
[1773150500891,1.342724,2038.7,2037.2,1.22717455]
[1773150501489,4.90508657,2038.8,2037.3,1.2604691]
[1773150501787,1.342724,2038.7,2037.2,1.22717455]
[1773150502087,1.342724,2038.7,2037.3,1.2604691]
[1773150502287,1.342724,2038.7,2037.2,1.22717455]
[1773150502490,0.001,2037.8,2037.2,2.48764365]
[1773150502862,1.22633179,2038.6,2037.3,1.2604691]
[1773150503181,1.71243099,2039.1,2037.8,1.2604691]
[1773150503367,1.22607091,2039.1,2038.0,3.67265907]
[1773150503691,1.342724,2039.5,2038.0,3.67265907]
[1773150503692,4.90344128,2039.4,2038.0,3.67265907]
[1773150503870,4.90344128,2039.4,2037.9,1.237]
[1773150503871,1.22585074,2039.4,2038.3,3.67265907]
[1773150504193,1.22585074,2039.4,2038.1,1.2604691]
[1773150504358,1.22585074,2039.4,2038.0,4.9544489]
[1773150504359,1.22585074,2039.4,2038.3,3.67265907]
[1773150504696,1.22558006,2039.9,2038.7,1.22627164]
[1773150505000,6.24484521,2040.0,2038.7,2.48674074]
[1773150505001,1.22553038,2040.0,2038.7,2.48674074]
[1773150505298,1.22553038,2040.0,2038.6,1.22629472]
[1773150505465,1.342724,2039.8,2038.4,4.90575704]
[1773150506566,1.22553038,2040.0,2038.5,3.67265907]
[1773150506872,1.22553038,2040.0,2038.6,2.48680089]
[1773150507070,2.56825438,2040.0,2038.6,2.48680089]
[1773150508006,1.342724,2039.9,2038.6,1.22633179]
[1773150508181,1.22553038,2040.0,2038.1,2.48704156]
[1773150508182,1.342724,2039.7,2038.1,2.48704156]
[1773150508386,1.342724,2039.7,2038.3,1.2604691]
[1773150508787,1.22553038,2040.0,2038.3,1.2604691]
[1773150509109,1.342724,2039.9,2038.4,3.72492121]
[1773150509403,1.342724,2039.8,2038.4,2.48692121]
[1773150509806,1.22553038,2040.0,2038.5,1.2604691]
[1773150510779,1.22553038,2040.0,2038.7,3.66659007]
[1773150510997,4.90185804,2040.1,2038.8,2.48668059]
[1773150511595,6.24458204,2040.1,2038.8,2.48668059]
[1773150512814,1.22543012,2040.1,2038.9,1.2604691]
[1773150513014,0.001,2040.2,2039.0,2.48656032]
[1773150513579,1.343724,2040.2,2038.8,1.27525994]
[1773150513805,1.343724,2040.2,2038.8,1.22621149]
[1773150514332,0.001,2039.8,2038.8,1.22621149]
[1773150514481,0.001,2040.2,2039.1,1.28720241]
[1773150515020,0.001,2040.2,2039.4,1.28720241]
[1773150515191,0.001,2040.2,2039.6,1.28720241]
[1773150516317,0.001,2040.2,2039.2,1.22597096]
[1773150517637,0.001,2040.2,2039.1,2.51323262]
[1773150517919,0.001,2040.2,2039.4,1.28720241]
[1773150518295,0.001,2040.2,2039.1,2.51323262]
[1773150519300,0.001,2040.2,2038.9,8.54824533]
[1773150519301,1.26496755,2040.2,2038.9,1.22612426]
[1773150519918,1.26496755,2040.2,2039.0,1.28720241]
[1773150520309,1.26496755,2040.2,2038.9,1.22612426]
[1773150520619,1.26496755,2040.2,2039.0,0.04904364]
[1773150521329,1.22543012,2040.1,2039.1,2.5132335]
[1773150522141,1.22543012,2040.1,2039.2,0.04903883]
[1773150522436,2.48939767,2040.1,2038.8,4.90474616]
[1773150522633,2.48939767,2040.1,2038.8,6.19194857]